bitfinex/quotes_ETHUSD_20240709
["timestamp","ask_amount","ask_price","bid_price","bid_amount"]
[1720517243999,9.45862,3096.7,3096.6,0.95984]
[1720517244597,6.22931,3096.7,3096.6,0.95984]
[1720517245437,10.645427,3096.7,3096.6,0.95984]
[1720517245727,13.874737,3096.7,3096.6,0.95984]
[1720517246546,21.355247,3096.7,3096.6,0.95984]
[1720517246730,23.37844631,3096.7,3096.6,0.95984]
[1720517246936,21.69349227,3096.7,3096.6,0.95984]
[1720517248346,21.69349227,3096.7,3095.3,2.008]
[1720517248347,3.23045,3095.6,3095.3,2.008]
[1720517248659,3.2305,3095.5,3094.9,2.008]
[1720517248863,6.46107,3095.5,3094.9,2.008]
[1720517249556,3.2305,3095.5,3094.9,2.008]
[1720517249919,7.24421611,3096.0,3095.3,2.008]
[1720517250167,7.24421611,3096.0,3095.3,2.07260233]
[1720517250372,7.24421611,3096.0,3095.3,2.008]
[1720517250672,6.46074,3095.7,3095.3,2.008]
[1720517250820,3.23036,3095.7,3095.3,2.008]
[1720517251020,6.46073,3095.7,3095.3,2.008]
[1720517252371,3.23036,3095.7,3095.3,2.008]
[1720517252660,6.46073,3095.7,3095.3,2.008]
[1720517253045,3.23036,3095.7,3095.3,2.008]
[1720517254346,6.46073,3095.7,3095.3,2.008]
[1720517254687,3.23036,3095.7,3095.3,2.008]
[1720517255185,6.46072,3095.7,3095.3,2.008]
[1720517255985,3.2304,3095.6,3095.3,2.008]
[1720517256186,3.2305,3095.5,3094.9,2.008]
[1720517256606,3.23072,3095.3,3094.9,2.008]
[1720517258145,3.23099,3095.1,3094.5,5.008]
[1720517258591,3.23098,3095.1,3094.5,5.008]
[1720517259272,3.23103,3095.0,3094.5,2.008]
[1720517259473,3.23103,3095.0,3094.2,3.23181]
[1720517259672,3.23124,3094.8,3094.1,4.5008]
[1720517260393,3.2314,3094.7,3094.1,4.5008]
[1720517260549,3.2314,3094.7,3094.1,2.008]
[1720517260755,3.23144,3094.6,3094.1,2.008]
[1720517261457,3.23157,3094.5,3094.1,2.008]
[1720517261699,6.4632,3094.5,3094.1,2.008]
[1720517261863,3.23157,3094.5,3094.1,2.008]
[1720517263671,3.23139,3094.7,3094.1,2.008]
[1720517263672,6.46281,3094.7,3094.1,2.008]
[1720517263852,3.23139,3094.7,3094.1,2.008]
[1720517265067,6.4628,3094.7,3094.1,2.008]
[1720517265289,3.23145,3094.6,3094.1,2.008]
[1720517271028,7.24421611,3094.9,3094.1,2.008]
[1720517271239,7.24421611,3094.9,3094.5,2.008]
[1720517271393,7.24421611,3094.9,3094.6,3.23133]
[1720517271794,7.24421611,3094.9,3094.5,2.008]
[1720517272299,7.24421611,3094.9,3094.3,3.23165]
[1720517272496,7.24421611,3094.9,3094.1,10.95181]
[1720517272700,7.24421611,3094.9,3094.1,7.71986]
[1720517272914,9.56571611,3095.2,3094.1,7.71986]
[1720517273088,11.04686611,3095.2,3094.1,7.71986]
[1720517273688,11.04686611,3095.2,3094.3,3.23165]
[1720517275301,3.23114,3094.9,3094.2,3.23185]
[1720517275705,3.23134,3094.7,3094.1,2.008]
[1720517280311,3.23139,3094.7,3094.1,2.008]
[1720517280718,3.23124,3094.8,3094.1,2.008]
[1720517281749,2.35368661,3095.1,3094.2,3.23185]
[1720517281952,3.23124,3094.8,3094.1,2.008]
[1720517282153,6.46254,3094.8,3094.1,2.008]
[1720517282446,3.23112,3094.9,3094.1,5.23995]
[1720517282649,3.23112,3094.9,3094.2,3.23185]
[1720517282816,3.23112,3094.9,3094.2,3.29647732]
[1720517283020,5.58462661,3095.1,3094.2,3.23177]
[1720517283841,5.58462661,3095.1,3094.3,0.06462845]
[1720517284072,5.58462661,3095.1,3094.3,3.29636845]
[1720517284421,7.24421611,3095.2,3094.4,5.64437]
[1720517284659,5.55252,3095.0,3094.0,2.4128]
[1720517284814,5.55252,3095.0,3094.2,3.23183]
[1720517284815,6.83865576,3095.0,3094.2,3.23183]
[1720517285115,3.23102,3095.0,3094.3,0.06462936]
[1720517285521,3.23102,3095.0,3094.2,3.23178]
[1720517285749,3.2312,3094.9,3094.1,2.008]
[1720517285954,3.23098,3095.1,3094.3,3.23174]
[1720517286136,3.23104,3095.0,3094.1,2.008]
[1720517286330,3.23104,3095.0,3094.2,3.2318]
[1720517286747,3.23104,3095.0,3094.3,3.23169]
[1720517288126,10.47507611,3095.2,3094.1,2.008]
[1720517288127,7.24421611,3095.2,3094.4,3.29626604]
[1720517288326,7.24421611,3095.2,3094.5,3.23145]
[1720517288553,7.24421611,3095.2,3094.6,0.06462191]
[1720517289026,7.24421611,3095.2,3094.5,3.23145]
[1720517289027,10.47508611,3095.2,3094.5,3.23145]
[1720517289628,2.3386,3095.4,3094.7,3.23129]
[1720517289824,7.24421611,3095.5,3094.9,3.23109]
[1720517290024,7.24421611,3095.5,3094.9,3.29565496]
[1720517290257,7.24421611,3095.5,3095.0,3.231]
[1720517290662,7.24421611,3095.5,3094.9,3.23112]
[1720517290991,7.24421611,3095.5,3094.9,6.46218]
[1720517291465,7.24421611,3095.5,3094.7,3.23127]
[1720517291664,11.84527072,3095.5,3094.6,2.387]
[1720517291876,11.84527072,3095.5,3094.6,3.23137]
[1720517291877,3.2307,3095.3,3094.6,3.23137]
[1720517292391,7.24421611,3095.5,3094.7,3.23131]
[1720517292588,10.47471611,3095.5,3094.7,3.23131]
[1720517292774,13.70527611,3095.5,3094.7,3.23131]
[1720517292982,11.84524372,3095.5,3094.7,3.23131]
[1720517293598,3.23065,3095.4,3094.7,3.23131]
[1720517294116,11.84524372,3095.5,3094.7,6.46255]
[1720517294311,11.84524372,3095.5,3094.7,3.23124]
[1720517294587,3.23117,3094.9,3094.1,3.23195]
[1720517294787,3.23098,3095.1,3094.3,3.23165]
[1720517295156,3.23098,3095.1,3094.4,0.0646261]
[1720517296497,6.46195,3095.1,3094.4,3.2962561]
[1720517296700,3.23102,3095.0,3094.2,2.008]
[1720517296897,4.91718408,3095.3,3094.4,3.23163]
[1720517297217,5.88064141,3095.3,3094.4,3.23163]
[1720517297577,3.23102,3095.0,3094.4,3.23163]
[1720517298009,3.23123,3094.8,3093.8,2.008]
[1720517298309,3.23133,3094.7,3093.8,5.008]
[1720517298607,3.23133,3094.7,3094.0,3.23205]
[1720517299775,1.68641408,3094.9,3094.3,2.3202]
[1720517299976,12.88016486,3095.5,3094.7,5.23924]
[1720517299977,10.47473611,3095.5,3094.7,5.23924]
[1720517300176,4.91899629,3095.4,3094.7,5.23924]
[1720517300381,4.91899629,3095.4,3094.7,2.008]
[1720517300577,3.23061,3095.4,3094.7,5.2393]
[1720517300890,1.68838629,3095.5,3094.8,3.23122]
[1720517301214,4.91888629,3095.5,3094.8,3.23122]
[1720517302712,3.23062,3095.4,3094.7,2.008]
[1720517303015,4.91900629,3095.4,3094.7,2.008]
[1720517303397,4.92077331,3095.4,3094.7,2.008]
[1720517303600,4.92077331,3095.4,3094.7,5.23932]
[1720517303789,3.23062,3095.4,3094.7,5.23932]
[1720517303992,4.92072598,3095.4,3094.7,5.23932]
[1720517304778,1.75472743,3095.3,3094.5,3.23147]
[1720517304985,3.29533145,3095.3,3094.6,3.23142]
[1720517305233,4.98543743,3095.3,3094.6,3.23142]
[1720517305710,4.92081598,3095.3,3094.6,3.23142]
[1720517307218,4.92081598,3095.3,3094.4,3.23154]
[1720517307401,3.23092,3095.1,3094.3,5.55187]
[1720517307717,10.54351598,3095.1,3094.3,6.46335]
[1720517307902,10.54351598,3095.1,3094.3,3.23167]
[1720517308720,1.69010598,3095.0,3094.3,3.23167]
[1720517308885,7.31252598,3095.1,3094.3,6.46336]
[1720517309309,1.69010598,3095.0,3094.3,3.23167]
[1720517309705,1.69010598,3095.0,3094.3,6.46336]
[1720517310018,5.62242,3095.1,3094.4,3.23162]
[1720517310019,2.3915,3095.1,3094.4,3.23162]
[1720517310487,4.92181331,3095.2,3094.4,3.23162]
[1720517310815,1.69101331,3095.2,3094.7,3.23131]
[1720517311017,7.38813331,3095.4,3094.4,0.06462507]
[1720517311193,1.69101331,3095.3,3094.8,3.23119]
[1720517311398,4.92163331,3095.4,3094.8,3.23119]
[1720517312205,1.69101331,3095.3,3094.8,3.23119]
[1720517312518,4.92163331,3095.4,3094.8,3.23119]
[1720517313216,4.92181331,3095.3,3094.4,3.23157]
[1720517313382,4.18611331,3095.2,3094.4,3.23157]
[1720517313590,1.69127633,3095.1,3094.6,3.23137]
[1720517313882,1.69127633,3095.2,3094.6,3.23137]
[1720517314087,4.92202633,3095.3,3094.6,3.23137]
[1720517314331,1.69181072,3095.2,3094.6,3.23137]
[1720517314623,1.69181072,3095.3,3094.7,3.23132]
[1720517316201,1.69181072,3095.2,3094.7,3.23132]
[1720517316519,1.69228336,3095.4,3095.3,3.23064]
[1720517316718,1.69228336,3095.7,3095.3,3.23064]
[1720517316919,7.24421611,3095.8,3095.3,3.23064]
[1720517317124,7.24421611,3095.8,3095.4,3.23059]
[1720517317419,1.69228336,3095.9,3095.4,3.23059]
[1720517317919,1.69228336,3095.9,3095.4,6.46112]
[1720517318117,1.69228336,3095.9,3095.4,3.23053]
[1720517318424,1.69228336,3096.0,3095.4,3.23053]
[1720517318620,1.69228336,3096.0,3095.4,6.46107]
[1720517318822,1.69228336,3095.9,3095.4,6.46107]
[1720517319127,1.69228336,3096.0,3095.4,6.46107]
[1720517319424,1.69228336,3096.0,3095.8,3.23012]
[1720517319625,1.69085235,3096.1,3095.8,3.23011]
[1720517319812,1.69085235,3096.3,3096.1,3.22986]
[1720517320014,8.93506846,3096.8,3096.3,3.22959]
[1720517320215,7.24421611,3096.8,3096.3,3.22959]
[1720517320628,0.06462145,3096.7,3096.1,3.22982]
[1720517321342,2.3538,3096.6,3095.9,3.23001]
[1720517321508,2.3538,3096.6,3095.9,6.46001]
[1720517321904,2.3538,3096.6,3095.9,3.23]
[1720517322110,3.33802045,3096.6,3095.7,3.2302]
[1720517322313,6.56738045,3096.6,3095.8,3.23012]
[1720517322614,3.29407145,3096.5,3095.6,3.23032]
[1720517322820,3.9508095,3096.5,3095.7,3.23028]
[1720517323012,3.88618805,3096.5,3095.8,3.23015]
[1720517323329,3.88618805,3096.5,3095.6,3.2303]
[1720517323527,3.9508095,3096.5,3095.6,3.2303]
[1720517323830,3.22982,3096.2,3095.3,5.7177]
[1720517324037,3.22982,3096.2,3095.3,3.23064]
[1720517324934,2.4035,3096.1,3095.3,3.2307]
[1720517325242,0.886315,3096.0,3095.3,6.46126]
[1720517325451,0.95093645,3096.0,3095.1,3.23083]
[1720517325673,4.18090645,3096.0,3095.1,3.23084]
[1720517325817,4.18090645,3096.0,3095.1,6.46168]
[1720517326156,3.23026,3095.8,3094.8,3.23116]
[1720517327227,0.65844065,3095.9,3094.7,2.2598]
[1720517327429,3.23024,3095.8,3095.0,6.46186]
[1720517327949,6.4605,3095.8,3095.0,3.23091]
[1720517328121,0.71189407,3095.7,3095.0,6.46186]
[1720517328824,0.71189407,3095.7,3095.0,3.23091]
[1720517329024,0.71189407,3095.7,3095.0,6.46187]
[1720517329220,0.65844065,3095.9,3095.2,3.23079]
[1720517329462,0.65844065,3095.9,3095.2,3.2308]
[1720517329676,3.0,3096.0,3095.2,3.2308]
[1720517329829,5.4035,3096.1,3095.2,3.2308]
[1720517330655,5.4035,3096.1,3095.4,3.23059]
[1720517330842,8.63343,3096.1,3095.4,3.23059]
[1720517331449,3.22998,3096.0,3095.4,3.23059]
[1720517331650,0.863348,3095.9,3095.4,3.23059]
[1720517331862,0.863348,3095.9,3095.2,6.46152]
[1720517332040,0.863348,3095.9,3095.2,6.46146]
[1720517332770,0.863348,3095.9,3095.2,3.23072]
[1720517333566,0.863348,3095.9,3095.3,3.23064]
[1720517333792,5.4035,3096.1,3095.4,3.2305]
[1720517334062,5.4035,3096.1,3095.5,3.23048]
[1720517335774,3.0,3096.1,3095.6,3.23032]
[1720517336524,7.24421611,3096.2,3095.6,3.23032]
[1720517336731,7.24421611,3096.2,3095.8,3.23016]
[1720517337638,7.24421611,3096.2,3095.7,3.23027]
[1720517337961,8.29159572,3096.2,3095.3,3.23068]
[1720517338133,2.4073,3095.9,3095.3,3.23069]
[1720517338451,3.2303,3095.7,3094.7,5.476]
[1720517338762,3.2303,3095.7,3095.0,3.23096]
[1720517339997,6.46065,3095.7,3094.6,3.23136]
[1720517340278,2.4467,3095.4,3094.1,4.306]
[1720517340452,3.23075,3095.3,3094.5,3.23146]
[1720517341644,3.23075,3095.3,3094.5,6.46291]
[1720517342268,5.6773,3095.4,3094.6,3.23143]
[1720517342667,2.4467,3095.4,3094.7,3.2313]
[1720517343875,2.4467,3095.4,3094.7,6.46257]
[1720517344447,2.4467,3095.4,3094.7,3.23127]
[1720517344782,5.6773,3095.4,3094.7,3.23127]
[1720517345381,3.23063,3095.4,3094.6,3.23135]
[1720517345581,7.24421611,3095.7,3094.7,2.4834]
[1720517345759,8.40192853,3095.7,3094.9,3.23106]
[1720517346147,8.40192853,3095.7,3094.9,6.46211]
[1720517346851,8.40192853,3095.7,3095.0,3.231]
[1720517347365,1.66707811,3095.9,3095.1,0.06461383]
[1720517347576,7.24421611,3096.0,3094.8,3.0]
[1720517347777,7.24421611,3096.0,3094.9,0.55]
[1720517348476,7.24421611,3096.0,3095.4,6.46108]
[1720517348703,9.53381611,3096.5,3095.9,3.23006]
[1720517348862,9.53381611,3096.5,3095.9,3.23]
[1720517349069,7.24421611,3096.5,3096.0,3.29454476]
[1720517349250,7.24421611,3096.5,3096.0,3.22995]
[1720517350961,7.24421611,3096.5,3095.8,3.23015]
[1720517351182,7.24421611,3096.5,3095.9,3.22999]
[1720517351382,7.24421611,3096.5,3095.9,6.46]
[1720517351704,7.24421611,3096.5,3095.9,3.22999]
[1720517352492,7.24421611,3096.5,3095.9,6.46]
[1720517352852,7.24421611,3096.5,3095.9,3.22999]
[1720517353271,9.53381611,3096.8,3095.9,3.22999]
[1720517353489,3.76756,3096.8,3095.7,3.2302]
[1720517353664,2.3591,3096.6,3095.4,3.23056]
[1720517353988,2.3591,3096.6,3095.5,3.0]
[1720517354287,2.4413,3096.7,3095.8,3.23013]
[1720517354462,0.24413,3096.6,3095.8,3.23013]
[1720517354817,2.4413,3096.7,3095.7,3.23024]
[1720517355087,2.4413,3096.7,3095.9,3.23001]
[1720517356275,2.4413,3096.7,3095.6,3.2303]
[1720517357188,2.4413,3096.7,3095.8,3.23008]
[1720517358007,2.4413,3096.7,3095.7,3.23024]
[1720517358292,0.24413,3096.6,3095.7,3.23024]
[1720517358989,2.38992145,3096.5,3094.9,2.2726]
[1720517359302,2.3253,3096.4,3095.3,3.23063]
[1720517359504,0.69971506,3096.3,3095.4,3.23058]
[1720517361502,2.3253,3096.4,3095.5,3.23039]
[1720517361804,5.3253,3096.4,3095.7,3.2302]
[1720517362002,5.3253,3096.4,3095.6,3.23038]
[1720517362298,2.3253,3096.4,3095.7,3.23025]
[1720517362611,3.0496505,3096.4,3095.5,3.23039]
[1720517362788,4.72372548,3096.4,3095.3,3.23064]
[1720517363097,3.0496505,3096.4,3095.4,3.23053]
[1720517363273,0.77237255,3096.3,3095.4,3.23053]
[1720517366711,2.3323,3096.2,3095.2,6.46147]
[1720517366913,2.3323,3096.2,3094.9,2.2726]
[1720517367137,2.3323,3096.2,3095.4,3.23057]
[1720517367275,2.81010957,3096.2,3095.4,3.23057]
[1720517369923,2.81010957,3096.2,3095.4,6.46111]
[1720517370073,2.3323,3096.2,3095.4,6.46111]
[1720517370271,4.11925772,3096.5,3095.5,2.44]
[1720517370491,2.445,3096.5,3095.8,3.23016]
[1720517370679,5.445,3096.5,3095.8,3.23016]
[1720517373614,6.90586437,3096.5,3095.8,3.23016]
[1720517373828,5.445,3096.5,3095.8,3.23016]
[1720517374192,3.0,3096.4,3095.8,3.23016]
[1720517374388,2.445,3096.5,3095.8,3.23016]
[1720517374872,3.0,3096.6,3095.8,3.23016]
[1720517375073,2.4414,3096.6,3096.2,3.2297]
[1720517376674,2.4414,3096.6,3096.0,3.22989]
[1720517376879,2.4414,3096.6,3096.1,3.22986]
[1720517377107,2.4414,3096.6,3096.0,3.22989]
[1720517377108,2.4414,3096.6,3096.2,3.22974]
[1720517377291,2.4414,3096.6,3096.2,6.45942]
[1720517377817,2.4414,3096.6,3096.2,3.22968]
[1720517378044,2.4414,3096.6,3096.2,6.45938]
[1720517378793,2.4414,3096.6,3096.2,3.22968]
[1720517382186,2.4414,3096.6,3096.0,3.22988]
[1720517382719,2.4414,3096.6,3096.2,3.22975]
[1720517385341,2.4414,3096.6,3096.2,6.45944]
[1720517385518,2.3069,3096.9,3096.3,3.22964]
[1720517385849,2.3069,3096.9,3096.4,3.22953]
[1720517386054,7.24421611,3097.0,3096.5,0.06458303]
[1720517386225,2.2975,3097.2,3096.6,3.22931]
[1720517386432,2.2975,3097.2,3096.5,3.22938]
[1720517386749,2.2975,3097.2,3096.5,3.29396194]
[1720517387320,2.2975,3097.2,3096.6,3.22933]
[1720517390913,10.47283611,3097.3,3096.7,3.22916]
[1720517390914,7.24421611,3097.3,3096.7,3.22916]
[1720517391538,8.29148972,3097.3,3096.7,3.22916]
[1720517391739,11.52010972,3097.3,3096.5,3.22935]
[1720517391945,2.399,3097.2,3096.5,3.22935]
[1720517392143,2.399,3097.2,3096.3,3.22961]
[1720517392144,5.69237145,3097.2,3096.3,3.22961]
[1720517392470,6.68919096,3097.2,3096.3,3.22961]
[1720517392769,6.68919096,3097.2,3096.4,3.22953]
[1720517392928,6.62456951,3097.2,3096.4,3.22953]
[1720517394172,6.62456951,3097.2,3096.5,3.22944]
[1720517394357,5.62775,3097.2,3096.5,3.22944]
[1720517399938,2.399,3097.2,3096.4,3.22953]
[1720517400144,2.399,3097.2,3096.6,3.22934]
[1720517400666,2.3275,3097.2,3096.8,0.834]
[1720517400866,5.3275,3097.5,3096.8,4.06305]
[1720517401192,5.3275,3097.5,3096.3,3.22963]
[1720517401193,8.55592,3097.5,3097.0,0.834]
[1720517401395,8.55592,3097.5,3096.7,0.834]
[1720517401396,3.22852,3097.4,3096.7,0.834]
[1720517401549,3.22852,3097.4,3096.6,3.22928]
[1720517401949,11.80166212,3097.5,3096.8,3.22912]
[1720517402177,8.55591,3097.5,3096.8,3.22912]
[1720517402374,2.3275,3097.5,3096.8,6.45819]
[1720517402578,2.3275,3097.5,3096.8,3.22907]
[1720517402776,2.3275,3097.5,3096.9,0.834]
[1720517403387,2.3275,3097.5,3096.9,4.06294]
[1720517403594,2.3275,3097.5,3096.9,0.834]
[1720517403797,2.3275,3097.5,3096.8,3.22913]
[1720517403994,3.22851,3097.4,3096.7,0.834]
[1720517404190,5.54488,3097.3,3096.7,0.834]
[1720517404675,5.54488,3097.3,3096.0,2.4743]
[1720517404676,5.54488,3097.3,3096.5,4.06342]
[1720517405405,5.54488,3097.3,3096.5,7.29281]
[1720517405590,5.54488,3097.3,3096.5,4.06339]
[1720517405802,6.5344632,3097.3,3096.5,4.06339]
[1720517405998,6.5344632,3097.3,3096.5,7.29278]
[1720517406400,6.5344632,3097.3,3096.6,3.22933]
[1720517406828,6.5344632,3097.3,3096.7,0.834]
[1720517408593,3.22873,3097.2,3096.7,0.834]
[1720517409547,3.22886,3097.1,3096.2,3.22976]
[1720517409688,3.22886,3097.1,3096.0,2.4743]
[1720517409689,5.68330145,3097.0,3096.4,0.834]
[1720517410216,8.91229145,3097.0,3096.4,0.834]
[1720517410629,5.61868,3097.0,3096.4,0.834]
[1720517412713,3.22913,3096.9,3095.9,3.23001]
[1720517412952,3.22916,3096.8,3096.3,0.834]
[1720517414028,3.19564315,3096.9,3096.3,0.834]
[1720517414029,5.53343,3096.9,3096.3,0.834]
[1720517414841,2.3044,3096.9,3096.5,0.834]
[1720517415606,5.53344,3096.9,3096.5,0.834]
[1720517415818,3.34869779,3096.9,3096.5,0.834]
[1720517416067,3.22914,3096.8,3096.5,0.834]
[1720517421132,3.29376145,3096.8,3096.0,3.22988]
[1720517421348,4.98174794,3096.8,3096.4,0.834]
[1720517421547,8.14636649,3096.8,3096.2,0.834]
[1720517421732,3.22946,3096.5,3096.2,0.834]
[1720517421966,3.22943,3096.6,3096.2,0.834]
[1720517422357,7.22150649,3096.9,3096.4,0.834]
[1720517422590,7.24421611,3097.3,3096.6,0.834]
[1720517422819,7.24421611,3097.3,3096.3,2.2744]
[1720517422820,8.93261346,3097.3,3097.2,0.834]
[1720517423105,4.42337682,3097.6,3097.2,0.834]
[1720517423106,1.68839735,3097.6,3097.2,0.834]
[1720517423257,7.24421611,3097.8,3097.5,0.834]
[1720517424172,7.24421611,3097.8,3097.3,0.834]
[1720517425072,7.24421611,3097.8,3097.5,0.834]
[1720517426563,7.24421611,3097.8,3097.3,0.834]
[1720517427096,10.47231611,3097.8,3097.3,0.834]
[1720517427302,3.09022161,3097.7,3096.9,3.22897]
[1720517427608,2.3658,3097.7,3097.1,0.834]
[1720517427765,7.24421611,3097.8,3097.3,0.834]
[1720517433711,3.22795,3098.0,3097.3,0.834]
[1720517434085,5.00395958,3098.0,3097.3,0.834]
[1720517434386,3.22795,3098.0,3097.3,0.834]
[1720517435312,3.22795,3098.0,3096.9,2.4445]
[1720517435313,3.22818,3097.8,3096.9,2.4445]
[1720517435608,3.22851,3097.4,3096.6,0.834]
[1720517435789,2.2709,3097.2,3096.6,0.834]
[1720517435998,2.33552145,3097.2,3096.6,0.834]
[1720517436574,0.06462145,3097.1,3096.2,5.67426]
[1720517436890,5.49962,3097.2,3096.2,5.67426]
[1720517436891,5.49962,3097.2,3096.6,0.834]
[1720517437508,3.22884,3097.1,3096.6,0.834]
[1720517437809,6.54086042,3097.2,3096.8,0.834]
[1720517438371,3.95512421,3097.5,3096.8,0.834]
[1720517438605,2.2709,3097.5,3097.0,0.834]
[1720517438772,8.92813357,3097.7,3096.8,5.57720815]
[1720517438974,3.94851746,3097.8,3097.2,0.834]
[1720517439309,3.94851746,3097.8,3097.1,3.22878]
[1720517439310,7.24421611,3098.0,3097.6,0.834]
[1720517439478,2.2762,3098.1,3097.6,0.834]
[1720517439675,0.71877624,3098.1,3097.6,0.834]
[1720517439885,3.22769,3098.2,3097.6,0.834]
[1720517440276,0.06462145,3098.1,3097.4,0.834]
[1720517440602,3.228,3097.9,3097.1,3.22874]
[1720517440780,0.71021645,3097.8,3097.1,3.22874]
[1720517441114,0.645595,3097.8,3097.1,3.22874]
[1720517441472,0.645595,3097.8,3096.9,3.22896]
[1720517441721,5.50443,3097.7,3096.8,5.51255]
[1720517442039,2.2762,3097.7,3096.9,6.22902]
[1720517442976,3.228,3097.9,3096.9,3.0]
[1720517443275,5.61978,3098.0,3097.1,3.22872]
[1720517443471,0.73031708,3097.9,3097.2,3.22872]
[1720517443905,3.22778,3098.1,3097.2,3.22863]
[1720517444115,3.22769,3098.2,3097.4,3.22845]
[1720517444316,3.22769,3098.2,3097.4,6.45688]
[1720517444474,0.645533,3098.1,3097.4,6.45688]
[1720517444677,0.645533,3098.1,3097.4,3.22843]
[1720517445478,3.873313,3098.1,3097.3,5.70421]
[1720517445833,3.873313,3098.1,3097.3,3.22861]
[1720517445834,3.22778,3098.1,3097.3,3.22861]
[1720517447386,6.45563,3098.1,3097.3,3.22861]
[1720517447592,3.22778,3098.1,3097.3,3.22861]
[1720517448122,6.45564,3098.1,3097.3,3.22861]
[1720517448621,3.873344,3098.1,3097.3,3.22861]
[1720517448910,3.22778,3098.1,3097.3,3.22861]
[1720517449207,3.22778,3098.1,3097.3,6.45716]
[1720517450202,3.22778,3098.1,3097.3,6.4571]
[1720517450694,3.22763,3098.3,3097.5,3.22832]
[1720517450887,3.22763,3098.3,3097.5,6.45667]
[1720517450888,3.0,3098.2,3097.5,6.45667]
[1720517451107,3.0,3098.2,3097.4,0.06456561]
[1720517451108,7.24421611,3098.7,3098.1,3.22773]
[1720517451309,3.22689,3099.0,3098.1,3.22773]
[1720517451496,4.31664719,3099.0,3098.2,2.3399]
[1720517451903,4.31664719,3099.0,3098.2,5.56756]
[1720517452098,1.08975719,3099.0,3098.2,5.56756]
[1720517452302,1.08975719,3099.0,3098.3,3.22755]
[1720517452499,4.08975719,3099.0,3098.3,3.22755]
[1720517452816,3.22707,3098.8,3097.9,2.3719]
[1720517453131,3.22707,3098.8,3098.0,3.22782]
[1720517453484,1.68412621,3099.4,3099.1,3.22667]
[1720517453693,0.1131393,3099.6,3098.8,2.001]
[1720517453991,0.1131393,3099.6,3099.1,3.22666]
[1720517454196,0.1131393,3099.6,3099.2,0.0644584]
[1720517454384,0.1131393,3099.6,3099.3,6.45293]
[1720517454585,0.1131393,3099.6,3099.1,3.22666]
[1720517455496,0.1131393,3099.6,3098.9,3.22689]
[1720517455741,0.0631393,3099.6,3099.1,3.22672]
[1720517456306,0.0631393,3099.6,3099.1,6.4534]
[1720517456589,0.0631393,3099.6,3099.1,3.22668]
[1720517456795,0.0631393,3099.6,3098.9,3.22689]
[1720517457211,0.0631393,3099.6,3098.9,6.45374]
[1720517457421,0.0631393,3099.6,3098.9,6.45373]
[1720517457928,0.0631393,3099.6,3098.9,6.45372]
[1720517458102,0.0631393,3099.6,3099.0,3.22681]
[1720517459339,0.0631393,3099.6,3099.3,3.22645]
[1720517460908,0.0631393,3099.6,3098.8,2.001]
[1720517461127,2.3211,3099.5,3097.8,13.10152]
[1720517461342,2.3211,3099.5,3098.7,3.22706]
[1720517461527,2.3211,3099.5,3098.8,0.06453715]
[1720517461733,0.0631393,3099.6,3098.9,3.22688]
[1720517462340,0.0631393,3099.6,3099.3,3.22648]
[1720517462540,0.0631393,3099.6,3099.4,3.2264]
[1720517462947,0.0631393,3099.6,3099.5,3.22632]
[1720517463320,0.0631393,3099.6,3099.0,6.45357]
[1720517463665,0.0631393,3099.6,3098.8,3.22701]
[1720517463808,0.0631393,3099.6,3098.8,3.22697]
[1720517464013,0.0631393,3099.6,3098.9,3.22693]
[1720517464254,0.0631393,3099.6,3098.6,2.001]
[1720517464477,0.0631393,3099.6,3099.1,3.22667]
[1720517464613,0.0631393,3099.6,3098.8,3.22699]
[1720517464614,0.0631393,3099.6,3098.8,3.22698]
[1720517465211,0.0631393,3099.6,3098.6,2.001]
[1720517465425,0.0631393,3099.6,3098.6,8.2282]
[1720517465953,0.0631393,3099.6,3098.9,3.22694]
[1720517466111,0.0631393,3099.6,3098.9,6.45373]
[1720517466306,0.0631393,3099.6,3099.0,2.4529]
[1720517466540,0.0631393,3099.6,3099.5,6.45264]
[1720517466719,0.0631393,3099.6,3099.5,6.51715208]
[1720517467720,0.0631393,3099.6,3099.5,9.74347208]
[1720517467943,0.0631393,3099.6,3099.5,12.59877208]
[1720517468342,0.0631393,3099.6,3099.5,15.59877208]
[1720517468516,0.0631393,3099.6,3099.5,15.53426]
[1720517469414,1e-08,3099.6,3099.5,15.53426]
[1720517471715,2.3988,3101.3,3100.8,3.2249]
[1720517471910,2.3988,3101.3,3100.9,3.22486]
[1720517472131,2.4388,3101.6,3101.0,3.22472]
[1720517472350,2.4388,3101.6,3100.6,3.22508]
[1720517472351,0.96830161,3101.6,3100.6,3.22508]
[1720517472647,7.24421611,3101.7,3100.4,0.06448882]
[1720517472648,7.24421611,3101.7,3101.2,3.22447]
[1720517473037,7.24421611,3101.7,3101.0,3.22468]
[1720517473358,10.46827611,3101.7,3100.8,3.2249]
[1720517473641,10.46827611,3101.7,3101.2,3.22455]
[1720517473642,1.04682761,3101.6,3101.2,3.22455]
[1720517473844,1.04682761,3101.6,3101.0,3.22473]
[1720517474633,1.04682761,3101.6,3100.8,3.2249]
[1720517474817,1.15150737,3101.5,3100.8,3.2249]
[1720517475014,1.15150737,3101.5,3100.2,5.65017]
[1720517475015,3.22461,3101.2,3100.0,3.22574]
[1720517475261,3.22461,3101.2,3099.8,2.001]
[1720517475262,0.06462145,3101.2,3099.8,2.001]
[1720517475432,3.22507,3100.7,3099.4,2.001]
[1720517475635,0.645011,3100.6,3100.0,3.22579]
[1720517475826,3.22481,3101.0,3100.0,3.22579]
[1720517476039,3.0,3100.9,3100.2,3.22559]
[1720517476365,3.0,3101.1,3100.3,3.2254]